Cogmind - Beta 16.1 @@@ ROGUE MODE // 2026.03.16 @ 22:46:50 Player: TheSkyeDoctor Result: Destroyed by G-47 Trooper with Particle Gun Performance ------------- Evolutions (2) 1000 Regions Visited (6) 1200 Robots Destroyed (37) 185 Value Destroyed (810) 810 Prototype IDs (25) 500 Alien Tech Used (0) 0 Bonus (300) 300 TOTAL SCORE: 3995 Bonus ------- Aligned with FarCom 300 Cogmind --------- Core Integrity 0/550 Matter 300/300 Energy 98/100 System Corruption 4% Temperature Cool (9) Movement Core (50) Location -8/Materials Parts ------- > --- POWER (1) -------- (None) > --- PROPULSION (4) --- (None) > --- UTILITY (4) ------ Trap Scanner > --- WEAPON (2) ------- (None) > --- INVENTORY (5) ---- Heat Sink Huge Storage Unit Hacking Suite Improved Datajack Peak State ------------ > --- POWER ------------ Light Ion Engine > --- PROPULSION ------- Light Treads > --- UTILITY ---------- Trap Scanner Cloak of Protection Improved Power Shielding > --- WEAPON ----------- Heavy Hammer > --- INVENTORY -------- Heat Sink Huge Storage Unit Hacking Suite Improved Datajack [Rating: 18] Favorites ----------- Power Heavy Ion Engine Engine Heavy Ion Engine Power Core Light Nuclear Core Propulsion Light Treads Treads Light Treads Wheel Wheel Hover Unit Aerolev Unit Utility Huge Storage Unit Device Seismic Detector Storage Huge Storage Unit Protection Improved Power Shielding Weapon Assault Rifle Energy Gun Medium Laser Energy Cannon Beam Cannon Ballistic Gun Assault Rifle Ballistic Cannon Improved Light Cannon Launcher Mini Grenade Launcher Impact Weapon Heavy Hammer Build | -11 -10 -9 -9 -9 -8 -8 ------- Run | Yrd Mat Mat Min Exi Min Mat Slots Evolved 4 | . . 2 . . . 2 Power . | . . . . . . . Propulsion 2 | . . 1 . . . 1 Utility 2 | . . 1 . . . 1 Weapon . | . . . . . . . Parts Attached 25 | 7 2 11 . . . 5 Power 4 | 1 . 2 . . . 1 Engine 3 | 1 . 2 . . . . Core 1 | . . . . . . 1 Reactor . | . . . . . . . Propulsion 7 | 2 . 4 . . . 1 Treads 3 | 2 . 1 . . . . Leg . | . . . . . . . Wheel 3 | . . 3 . . . . Hover 1 | . . . . . . 1 Flight . | . . . . . . . Utility 8 | 2 1 3 . . . 2 Device 4 | 1 . 1 . . . 2 Storage 2 | 1 1 . . . . . Processor . | . . . . . . . Hackware . | . . . . . . . Protection 2 | . . 2 . . . . Artifact . | . . . . . . . Weapon 6 | 2 1 2 . . . 1 Energy Gun 1 | 1 . . . . . . Energy Cannon 1 | . 1 . . . . . Ballistic Gun 1 | 1 . . . . . . Ballistic Cannon 1 | . . 1 . . . . Launcher 1 | . . 1 . . . . Special Weapon . | . . . . . . . Impact Weapon 1 | . . . . . . 1 Slashing Weapon . | . . . . . . . Piercing Weapon . | . . . . . . . Special Melee Weapon . | . . . . . . . Unidentified Prototypes 2 | . . 1 . . . 1 Parts Lost 22 | . . 10 . . 5 7 Power 4 | . . 1 . . 1 2 Propulsion 7 | . . 4 . . 1 2 Utility 5 | . . 2 . . 1 2 Weapon 6 | . . 3 . . 2 1 Highest Loss Streak 6 | . . 6 . . 5 6 To Critical Strikes 2 | . . 2 . . . . Average Backups 5 | 2 3 7 5 5 6 3 Power . | . 1 . 1 1 1 . Propulsion . | 1 2 1 . . . . Utility 2 | . . 2 3 3 4 2 Weapon . | . . 1 . . . . Tool/Special . | . . . . . . . Unused Backups 3 | . . . . . . 3 Power . | . . . . . . . Propulsion . | . . . . . . . Utility 2 | . . . . . . 2 Weapon . | . . . . . . . Tool/Special 1 | . . . . . . 1 Average Slot Usage (%) 80 | . 100 83 88 88 77 35 Engine 10 | . 14 10 11 11 7 5 Treads 14 | . 28 15 11 11 11 5 Wheel 4 | . . 4 11 11 7 . Device 9 | . 14 13 . . . 14 Storage 10 | . 14 11 11 11 11 2 Protection 10 | . . 7 22 22 22 5 Energy Gun 5 | . 7 3 11 11 7 . Energy Cannon 3 | . 7 6 . . . . Ballistic Gun 7 | . 14 4 11 11 11 . Ballistic Cannon 2 | . . 5 . . . . Peak Build Rating 18 | 7 7 14 13 13 13 18 Average Rating 10 | 5 7 11 13 13 10 11 On Entrance 8 | . 7 7 13 13 13 6 Avg Prop Armor Cover (%) 8 | . . 8 9 9 9 . Naked Turns . | . . . . . . . Heaviest Build 97 | 15 91 97 97 97 97 95 Greatest Support 40 | 40 40 40 10 10 20 20 Greatest Overweight (x) 31 | . 2 31 9 9 9 5 Average Overweight (x) 4 | . . 5 9 9 6 . Largest Inventory Capacity 25 | 8 25 25 25 25 25 25 Average Capacity 20 | 7 16 25 25 25 25 9 Most Carried 11 | 3 4 11 5 6 6 5 Average Carried 5 | 2 3 7 5 5 6 3 Final Capacity 25 | 8 25 25 25 25 25 5 Final Carried 6 | 3 4 5 5 6 6 4 Class Distribution -------------------- 100% | Mutant Dominant Class ---------------- Mutant | -10/Materials Mutant | -9/Materials Mutant | -9/Mines Mutant | -9/Exiles Mutant | -8/Mines Mutant | -8/Materials Resources | -11 -10 -9 -9 -9 -8 -8 ----------- Run | Yrd Mat Mat Min Exi Min Mat Matter Collected 782 | 291 95 351 . . . 45 Remotely . | . . . . . . . Salvage Created 932 | 111 235 537 . . . 49 Parts 66 | 7 12 47 . . . . Haulers Intercepted 2 | . 1 1 . . . . Recyclers Shooed 1 | 1 . . . . . . Parts Field Recycled . | . . . . . . . Retrieved Matter . | . . . . . . . Parts Self-Destructed . | . . . . . . . Prevented . | . . . . . . . Parts Restored . | . . . . . . . Kills | -11 -10 -9 -9 -9 -8 -8 ------- Run | Yrd Mat Mat Min Exi Min Mat Combat Hostiles Destroyed 23 | . 4 19 . . . . Guns 4 | . 2 2 . . . . Cannons 12 | . 2 10 . . . . AOE 7 | . . 7 . . . . Classes Destroyed 10 | 2 3 5 . . . . Worker 1 | . . 1 . . . . Builder 4 | . 1 2 . . . 1 Tunneler 2 | 2 . . . . . . Hauler 2 | . 1 1 . . . . Recycler 1 | 1 . . . . . . Operator 2 | . . 1 . . . 1 Watcher 2 | . . 2 . . . . Swarmer 7 | . . 7 . . . . Grunt 13 | . 4 9 . . . . Sentry 3 | . . 3 . . . . Best Kill Streak 10 | 2 3 10 . . . 1 Combat Bots Only 6 | . 2 6 . . . . Max Kills in Single Turn 5 | 1 1 5 . . . 1 Gunslinging . | . . . . . . . Exploded 4 | . . 4 . . . . Melee . | . . . . . . . Uniques/NPCs Destroyed . | . . . . . . . Combat | -11 -10 -9 -9 -9 -8 -8 -------- Run | Yrd Mat Mat Min Exi Min Mat Hostile Shots Fired 310 | . 35 107 . . 51 117 Missed 77 | . 6 22 . . 16 33 Hits 233 | . 29 85 . . 35 84 Melee 3 | . . . . . . 3 Projectile 230 | . 29 85 . . 35 81 Critical Strikes 9 | . 1 6 . . . 2 Damage Taken 3119 | . 370 1077 . . 364 1308 Core 1000 | . 65 271 . . 111 553 Absorbed by Shields . | . . . . . . . Redirected to Shielding 103 | . . 67 . . 8 28 Core Remaining (%) 59 | 100 74 . . . 4 . Volleys Fired 79 | 7 25 47 . . . . Largest 2 | 2 2 2 . . . . Hottest 93 | 70 80 93 . . . . Shots Fired 145 | 14 50 81 . . . . Gun 60 | 14 35 11 . . . . Cannon 72 | . 15 57 . . . . Launcher 13 | . . 13 . . . . Special . | . . . . . . . Kinetic 66 | 7 25 34 . . . . Thermal 66 | 7 25 34 . . . . Explosive 13 | . . 13 . . . . Electromagnetic . | . . . . . . . Robot Hit Streak 14 | 3 13 14 . . . . Robot Miss Streak 4 | 1 3 4 . . . . Penetration Max . | . . . . . . . Secondary Targets . | . . . . . . . Shots Hit Robots 98 | 8 35 53 . . . 2 Core Hits 44 | 4 11 29 . . . . Critical Kills . | . . . . . . . Critical Parts Destroyed . | . . . . . . . Critical Strikes 1 | . . 1 . . . . Burn 1 | . . 1 . . . . Melee Attacks 4 | . . . . . . 4 Impact 4 | . . . . . . 4 Slashing . | . . . . . . . Piercing . | . . . . . . . Sneak Attacks 1 | . . . . . . 1 Combat Hostiles . | . . . . . . . Follow-up Attacks . | . . . . . . . Damage Inflicted 2476 | 103 525 1689 . . . 159 Guns 506 | 103 315 88 . . . . Cannons 925 | . 210 715 . . . . Explosions 886 | . . 886 . . . . Melee 145 | . . . . . . 145 Ramming 14 | . . . . . . 14 Kinetic 698 | 66 227 405 . . . . Thermal 733 | 37 298 398 . . . . Explosive 886 | . . 886 . . . . Electromagnetic . | . . . . . . . Impact 145 | . . . . . . 145 Slashing . | . . . . . . . Piercing . | . . . . . . . Highest Corruption 4 | . . . . . . 4 Average Corruption 4 | . . . . . . 4 Corruption Purged . | . . . . . . . Corruption Blocked . | . . . . . . . Effects 1 | . . . . . . 1 Message Errors 1 | . . . . . . 1 Overload Shots . | . . . . . . . Overflow Damage 169 | . 1 73 . . . 95 Projectiles 4 | . 1 3 . . . . Explosions 70 | . . 70 . . . . Melee 95 | . . . . . . 95 Knockbacks 4 | . . 3 . . . 1 Impact 1 | . . . . . . 1 Kinetic 3 | . . 3 . . . . Secondary . | . . . . . . . Self-Inflicted Damage 147 | . . 141 . . . 6 Shots 4 | . . 4 . . . . Rammed 4 | . . . . . . 4 Targets Rammed 4 | . . . . . . 4 Kicked . | . . . . . . . Crushed . | . . . . . . . Highest Temperature 370 | 18 370 184 . . . 6 Average Temperature 71 | 9 120 47 . . . 2 Received Heat Transfer 948 | . 228 333 . . . 387 Effects 1 | . 1 . . . . . Shutdowns 1 | . 1 . . . . . Siege Activations . | . . . . . . . Martial Activations . | . . . . . . . Shielding Activations . | . . . . . . . Robots Disrupted . | . . . . . . . Combat Hostiles . | . . . . . . . Robots Corrupted 2 | . . . . . . 2 Combat Hostiles . | . . . . . . . Parts Fried 3 | . . . . . . 3 Impact Corruptions 4 | . . . . . . 4 Robots Melted . | . . . . . . . Combat Hostiles . | . . . . . . . Parts Melted 1 | . . 1 . . . . Heat Transferred 1776 | 111 703 962 . . . . Parts Sabotaged . | . . . . . . . Parts Stolen . | . . . . . . . Parts Stripped . | . . . . . . . Power Chain Reactions . | . . . . . . . Alert | -11 -10 -9 -9 -9 -8 -8 ------- Run | Yrd Mat Mat Min Exi Min Mat Maximum Alert Level 1 | . . 1 . . . . Low Security (%) 83 | 100 100 66 100 . 100 100 Level 1 16 | . . 33 . . . . Level 2 . | . . . . . . . Level 3 . | . . . . . . . Level 4 . | . . . . . . . Level 5 . | . . . . . . . High Security . | . . . . . . . Max Security . | . . . . . . . Peak Influence 287 | 5 57 287 70 . . 60 Initial 70 | . . . 70 . . . Average 66 | 1 16 117 40 . . 6 Influence Increases 875 | 15 143 600 . . . 117 Destroy 0b10 Robot/C 460 | . 80 380 . . . . Destroy 0b10 Robot/NC 70 | 15 10 35 . . . 10 Destroy Leader 98 | . 22 76 . . . . Successful Hack 14 | . . 14 . . . . Disable Machine 30 | . . 30 . . . . Destroy Structure 53 | . 1 50 . . . 2 Partial Spotted 15 | . 15 . . . . . Lose Combat Pursuer 135 | . 15 15 . . . 105 Influence Decreases 815 | 15 143 419 171 10 . 57 Entered New Map 121 | . . . 111 10 . . Time Decay 579 | 15 143 319 60 . . 42 Lost Part 115 | . . 100 . . . 15 Squads Dispatched 2 | . . 2 . . . . Investigation . | . . . . . . . Extermination . | . . . . . . . Reinforcement 2 | . . 2 . . . . Assault . | . . . . . . . Garrison . | . . . . . . . Intercept . | . . . . . . . Searches Triggered . | . . . . . . . Construction Impeded 1 | . . 1 . . . . Haulers Reinforced . | . . . . . . . Active Scanning Responses . | . . . . . . . Cargo Convoy Interrupts . | . . . . . . . Stealth | -11 -10 -9 -9 -9 -8 -8 --------- Run | Yrd Mat Mat Min Exi Min Mat Distress Signals 5 | . . 3 . . . 2 Communications Jammed . | . . . . . . . Distress Signals . | . . . . . . . Times Spotted 62 | . 7 33 . . 4 18 Peak Tracking Total 17 | . 3 6 . . 4 17 Tactical Retreats 5 | . 1 1 . . . 3 Traps | -11 -10 -9 -9 -9 -8 -8 ------- Run | Yrd Mat Mat Min Exi Min Mat Traps Triggered . | . . . . . . . Indirectly . | . . . . . . . Trap Hack Attempts . | . . . . . . . Triggered . | . . . . . . . Disarmed . | . . . . . . . Reprogrammed . | . . . . . . . Reused . | . . . . . . . Traps Extracted . | . . . . . . . Installed . | . . . . . . . Triggered . | . . . . . . . Machines | -11 -10 -9 -9 -9 -8 -8 ---------- Run | Yrd Mat Mat Min Exi Min Mat Machines Disabled 2 | . . 2 . . . . Max in Single Turn 1 | . . 1 . . . . Machines Repaired . | . . . . . . . Machines Dismantled . | . . . . . . . Machines Sabotaged . | . . . . . . . Overloaded Fab Kills . | . . . . . . . Hacking | -11 -10 -9 -9 -9 -8 -8 --------- Run | Yrd Mat Mat Min Exi Min Mat Machines Accessed 3 | . . 1 . 1 . 1 Terminals 2 | . . 1 . . . 1 Fabricators . | . . . . . . . Repair Stations . | . . . . . . . Recycling Units . | . . . . . . . Scanalyzers . | . . . . . . . Garrison Access . | . . . . . . . Total Hacks 6 | . . 2 . 1 . 3 Successful 2 | . . 1 . 1 . . Failed 4 | . . 1 . . . 3 Catastrophic 1 | . . . . . . 1 Database Lockouts . | . . . . . . . Manual 6 | . . 2 . 1 . 3 Terminals 5 | . . 2 . . . 3 Fabricators . | . . . . . . . Repair Stations . | . . . . . . . Recycling Units . | . . . . . . . Scanalyzers . | . . . . . . . Garrison Access . | . . . . . . . Terminal Hacks 1 | . . . . 1 . . Proto ID Catalog 1 | . . . . 1 . . Fabricator Hacks . | . . . . . . . Repair Station Hacks . | . . . . . . . Recycling Unit Hacks . | . . . . . . . Scanalyzer . | . . . . . . . Garrison Access Hacks . | . . . . . . . Unauthorized Hacks 1 | . . 1 . . . . Terminals 1 | . . 1 . . . . Botnet 1 | . . 1 . . . . Fabricators . | . . . . . . . Repair Stations . | . . . . . . . Recycling Units . | . . . . . . . Scanalyzers . | . . . . . . . Garrison Access . | . . . . . . . Data Cores Recovered 1 | . . . . . . 1 Used . | . . . . . . . Hacking Detections 2 | . . 1 . . . 1 Full Trace Events . | . . . . . . . Feedback Events . | . . . . . . . Feedback Blocked . | . . . . . . . Robot Schematics Acquired . | . . . . . . . Robots Built . | . . . . . . . Authchips . | . . . . . . . Time . | . . . . . . . Total Robot Build Rating . | . . . . . . . Part Schematics Acquired . | . . . . . . . Parts Built . | . . . . . . . Authchips . | . . . . . . . Time . | . . . . . . . Total Part Build Rating . | . . . . . . . Part Studies Acquired . | . . . . . . . Parts Repaired . | . . . . . . . Time . | . . . . . . . Parts Recycled . | . . . . . . . Recycled Matter . | . . . . . . . Retrieved Matter . | . . . . . . . Retrieved Components . | . . . . . . . Parts Scanalyzed . | . . . . . . . Part Schematics Acquired . | . . . . . . . Parts Damaged . | . . . . . . . Bothacking | -11 -10 -9 -9 -9 -8 -8 ------------ Run | Yrd Mat Mat Min Exi Min Mat Used RIF Installer . | . . . . . . . Robots Hacked . | . . . . . . . Non-combat . | . . . . . . . Combat . | . . . . . . . Robot Hacks Applied . | . . . . . . . Relay Couplers Released . | . . . . . . . Fabnet Peak Effective % . | . . . . . . . Robots Rewired . | . . . . . . . Allies Hacked . | . . . . . . . Hacks Repelled . | . . . . . . . Allies | -11 -10 -9 -9 -9 -8 -8 -------- Run | Yrd Mat Mat Min Exi Min Mat Total Allies . | . . . . . . . Largest Group . | . . . . . . . Highest-Rated Group . | . . . . . . . Highest-Rated Ally . | . . . . . . . Total Orders . | . . . . . . . Ally Attacks . | . . . . . . . Total Damage . | . . . . . . . Kills . | . . . . . . . Allies Corrupted . | . . . . . . . Allies Melted . | . . . . . . . Intel | -11 -10 -9 -9 -9 -8 -8 ------- Run | Yrd Mat Mat Min Exi Min Mat Active Infowar (turns) 1497 | 21 411 706 . . . 359 Sensors 683 | . . 683 . . . . Traps 359 | . . . . . . 359 Seismic 1062 | 21 411 630 . . . . Cloaking 24 | . . . . . . 24 Robot Analysis Total . | . . . . . . . Derelict Logs Recovered . | . . . . . . . Drone Launches . | . . . . . . . Drone Recoveries . | . . . . . . . Exploration | -11 -10 -9 -9 -9 -8 -8 ------------- Run | Yrd Mat Mat Min Exi Min Mat Turns Passed 2726 | 138 411 1098 134 560 26 359 Spaces Moved 1157 | 68 147 332 63 261 9 277 Core 181 | 4 . 3 . . . 174 Treads 476 | 64 147 169 . . 4 92 Legs . | . . . . . . . Wheels 489 | . . 160 63 261 5 . Hover 11 | . . . . . . 11 Flight . | . . . . . . . Fastest Speed 50 | 50 160 135 215 215 215 50 Average Speed 208 | 153 213 280 215 215 332 120 Slowest Speed 1600 | 160 320 1600 215 215 480 480 Overloaded Moves . | . . . . . . . Propulsion Burnouts . | . . . . . . . Robots Hopped . | . . . . . . . Potential Cave-ins . | . . . . . . . Cave-ins Triggered . | . . . . . . . Exploration Rate (%) 28 | 3 30 34 22 70 8 35 Regions Visited 6 Branch Regions 3 Pre-discovered Areas . | . . . . . . . Known Exits Taken . | . . . . . . . Unknown Exits Taken 6 | 1 1 1 1 1 1 . Scrap Searched . | . . . . . . . Spaces Dug 2 | . . . . . . 2 Terrain Destroyed 60 | . . 58 . . . 2 Melee 2 | . . . . . . 2 Projectile 2 | . . 2 . . . . AOE 56 | . . 56 . . . . Terrain Rammed . | . . . . . . . Walls Destroyed . | . . . . . . . Machines Disabled . | . . . . . . . Actions | -11 -10 -9 -9 -9 -8 -8 --------- Run | Yrd Mat Mat Min Exi Min Mat Total 1321 | 84 196 416 62 261 8 294 Wait 37 | . 21 16 . . . . Move 1151 | 67 146 331 62 260 8 277 Hop . | . . . . . . . Pick Up 13 | 3 1 8 . 1 . . Fast Attach 14 | 7 . 4 . . . 3 Attach 11 | . . 7 . . . 4 Detach 2 | . . . . . . 2 Swap 5 | . 2 3 . . . . Drop 1 | . 1 . . . . . Fire 79 | 7 25 47 . . . . Melee 4 | . . . . . . 4 Ram 4 | . . . . . . 4 Kick . | . . . . . . . Crush . | . . . . . . . Escape Stasis . | . . . . . . . Rewire . | . . . . . . . Trap . | . . . . . . . Miscellaneous . | . . . . . . . Route ------- -11/Scrapyard -10/Materials -9/Materials -9/Mines -9/Exiles -8/Mines -8/Materials History --------- Turn | Location | Event 12 | -11/Scrapyard | Discovered new exit (range 14) 139 | -11/Scrapyard | Entered Materials 311 | -10/Materials | Build established: Mutant 502 | -10/Materials | Discovered new exit (range 9) 550 | -10/Materials | Entered another Materials area 550 | -9/Materials | Evolved 2 slots: Propulsion x1, Utility x1 1249 | -9/Materials | Lost 6 parts (3n1u2w) 1260 | -9/Materials | Core integrity fell below 50% 1297 | -9/Materials | Lost 3 parts (1n1u1w) 1477 | -9/Materials | Discovered new exit (range 16) 1648 | -9/Materials | Entered Mines 1767 | -9/Mines | Deemed a non-threat by the Exiles lab entrance 1769 | -9/Mines | Discovered new exit (range 5) 1782 | -9/Mines | Entered Exiles 1832 | -9/Exiles | Met 8R-AWN 1871 | -9/Exiles | Met EX-HEX 1929 | -9/Exiles | Met EX-BIN 1957 | -9/Exiles | Aligned with FarCom system 1959 | -9/Exiles | Given EX-Vault access code 2017 | -9/Exiles | Opened EX-Vault 2030 | -9/Exiles | Found Cloak of Protection 2072 | -9/Exiles | Warned to stay clear of 0b10 Research branches 2130 | -9/Exiles | Met EX-DEC 2315 | -9/Exiles | Discovered new exit (range 15) 2342 | -9/Exiles | Left Exiles lab with Cloak of Protection 2342 | -9/Exiles | Entered Mines 2342 | -8/Mines | Discovered new exit (range 9) 2357 | -8/Mines | Core integrity fell below 20% 2368 | -8/Mines | Entered Materials 2368 | -8/Materials | Evolved 2 slots: Propulsion x1, Utility x1 2394 | -8/Materials | Lost 5 parts (1p1n1u2w) 2628 | -8/Materials | Lost 6 parts (2p2n2u) 2688 | -8/Materials | Core integrity fell below 50% 2700 | -8/Materials | Core integrity fell below 20% 2727 | -8/Materials | Destroyed by G-47 Trooper with Particle Gun Last Messages --------------- crushing effect. 02646_ O-24 Administrator system terminally corrupted. 02646_ Lgt. Deuterium Engine fried. 02648_ Acquired data core, extracted dynamic key. 02649_ K-01 Serf collects debris. 02649_ Acquired 10 matter. 02652_ K-01 Serf collects debris. 02659_ Slug penetrates Wall. 02681_ Penetrated by Slug. 02681_ Hvy. Hammer destroyed. 02687_ Slammed into G-47 Trooper. 02688_ Destabilizing: Core damaged (-5). 02689_ Slammed into G-47 Trooper. 02691_ Penetrated by Slug. 02691_ W-25 Informer sends out distress signal. 02706_ Slug penetrates Door. 02714_ Slug penetrates G-47 Trooper. 02726_ ,&>CXGRS#1/JCUU%:SXA9OGZA Map ----- +----------------------------------------------------+ | ????????????????????????????????????????????????? | | ????????????????????????????????????????????????? | | ????????????????????????????????????????????????? | | ????????????????????????????????????????????????? | | ????????????????????????????????????????????????? | | ????????????????????????????????????????????????? | | ?????????????????????????????????????????#####??? | | ???????????????????????????????????# ##### #### | | ?????????????????????????????? | | ?????????????????????????????????????##### #### | | ?????????????????????? ??????????????????# #??? | | ?????????????????? ?????????????????# #??? | | ???????????????? ?????????????????# #??? | | ????????????????? ???#####?????????# #??? | | ?????????????????? ???# #?????????# #??? | | ??????????????????? ???# +?????????# #??? | | ???????????????????? ???# #?????????# #??? | | ????????????????????# ???# #?????????# #??? | | ????????????????????# #??# #?????????# #??? | | ????????????????????# #??# #?????????# #??? | | ????????????????????# #### ########### #### | | ????????????????????# | | ????????????????????+ | | ????????????????????# | | ????????????????????### ####h######"######+### | | ??????????????????????#a@ #???????? ???????? | | ??????????????????????# +??????# ?????? | | ??????????????????????#g #??????# #????? | | ?????????############## #??????# !#????? | | ?????????# + +??????# #????? | | ?????????# """ #########??????# #????? | | ?????????# "T" #??????????????# #????? | | ?????????# #??????????????# #????? | | ?????????###########??????????????# #????? | | ???????????????????????????????????########?????? | | | | | | | | | | | | | | | | | | | | | | | | | | | | | | | +----------------------------------------------------+ Best States ------------- Heat Dissipation 31 Energy Generation 14 Energy Capacity 280 Matter Stores 300 Matter Capacity 300 Sight Range 16 Robot Scan Range 14 Terrain Scan Density 10 Cloak Strength 5 Armor Coverage 150 Power Shielding 66 Evasion (%) 50 Recoil Reduction 2 Item Schematics ----------------- None Robot Schematics ------------------ None Fabricated ------------ Nothing Repaired ---------- Nothing Studied --------- None Alien Tech Used ----------------- None Achievements -------------- None Challenges ------------ None Game ------ Seed ExpertGrenadeTreads Manual? 0 Play Time 00:17:00 Cumulative 67.3 hours Start 2026.03.16 @ 22:32:37 End 2026.03.16 @ 22:46:50 Sessions 1 Manual Loads 0 Difficulty Rogue Special Mode None Game No. 156 Rogue 156 Adventurer 0 Explorer 0 Win Type - Total 0 Types 0/0/0/0/0/0/0/0/0/0 Lore% 39 Gallery% 43 Achievement% 35 Wizard Run 0 Options --------- Layout 2 ASCII 0 Keyboard 1 Movement Arrows Keybinds 0 Fullscreen 1 Font 24/Smallcaps Map View 50x44 Zoom Use 0% Tactical HUD 1 Map Filters NONE Filters NONE Steam 1 RUN: f9cd9401-f2d8-4d54-8c23-9129c17c8c34